bitfinex/quotes_SOLUSD_20241222
["timestamp","ask_amount","ask_price","bid_price","bid_amount"]
[1734835653960,0.11670447,181.97,181.96,57.79752265]
[1734835654958,0.11670447,181.97,181.96,34.02063865]
[1734835655129,0.11670447,181.97,181.95,0.82359279]
[1734835655565,0.11670447,181.97,181.96,0.82403077]
[1734835656448,0.11670447,181.97,181.94,0.82405265]
[1734835657729,0.11670447,181.97,181.95,0.82409474]
[1734835658256,0.11670447,181.97,181.96,23.776884]
[1734835658762,0.11670447,181.97,181.96,24.60098457]
[1734835661935,0.11670447,181.97,181.96,58.74711322]
[1734835662136,9.041e-05,181.98,181.97,0.12549]
[1734835662446,9.041e-05,181.98,181.97,47.88462865]
[1734835663869,0.10177477,182.0,181.99,26.57149]
[1734835664166,0.10177477,182.0,181.99,61.41557625]
[1734835664363,7.477e-05,182.0,181.99,73.75417625]
[1734835664659,0.01666737,182.03,182.02,20.12549]
[1734835664957,0.1952855,182.14,182.04,0.12549]
[1734835665143,0.1952855,182.14,182.04,34.9692423]
[1734835665725,0.1952855,182.14,182.04,58.7461263]
[1734835669541,0.1952855,182.14,182.04,24.59999765]
[1734835669878,1.5378,182.11,182.04,0.82311365]
[1734835670175,21.02976236,182.1,181.97,0.82380989]
[1734835670361,1.373,182.08,181.97,0.82380989]
[1734835670539,1.14626435,182.06,181.97,0.82380989]
[1734835670740,1.14626435,182.06,181.94,0.82403661]
[1734835670948,2.51946435,182.06,181.94,0.82403661]
[1734835671175,0.1162206,182.06,181.94,34.84467526]
[1734835671379,0.1162206,182.06,181.94,0.82403661]
[1734835671580,0.1162206,182.06,181.96,34.02063865]
[1734835671876,0.10330923,181.98,181.97,0.82389635]
[1734835672051,0.10330923,181.98,181.97,34.844535]
[1734835672251,0.10330923,181.98,181.97,58.621419]
[1734835674277,0.10330923,181.98,181.97,58.746909]
[1734835675053,9.23e-06,181.98,181.97,58.746909]
[1734835677064,9.23e-06,181.98,181.97,34.844535]
[1734835677245,9.23e-06,181.98,181.97,0.82389635]
[1734835677452,9.23e-06,181.98,181.96,0.82393175]
[1734835678783,9.23e-06,181.98,181.97,0.82407601]
[1734835678958,9.23e-06,181.98,181.94,0.82407129]
[1734835680084,9.23e-06,181.98,181.95,23.776884]
[1734835680289,9.23e-06,181.98,181.97,57.79752265]
[1734835681287,9.23e-06,181.98,181.97,57.92301265]
[1734835681470,9.23e-06,181.98,181.97,57.79752265]
[1734835682291,9.23e-06,181.98,181.97,23.776884]
[1734835683290,9.23e-06,181.98,181.94,0.82409172]
[1734835683596,9.23e-06,181.98,181.91,0.824204]
[1734835684192,1.03037967,181.98,181.91,0.824204]
[1734835684492,9.23e-06,181.98,181.88,34.84497318]
[1734835684667,9.23e-06,181.98,181.88,0.82433453]
[1734835685307,9.23e-06,181.98,181.89,0.82438865]
[1734835685780,9.23e-06,181.98,181.85,0.82446703]
[1734835686578,1.634,181.94,181.83,0.82458692]
[1734835686811,1.03083597,181.93,181.8,0.82466878]
[1734835688091,21.634,181.94,181.84,34.02063865]
[1734835688292,21.634,181.94,181.85,24.60134327]
[1734835689219,1.634,181.94,181.85,24.60134327]
[1734835690515,1.03071925,181.93,181.85,24.60134327]
[1734835690886,1.634,181.94,181.85,24.60134327]
[1734835691322,1.03064548,181.93,181.85,24.60134327]
[1734835691521,1.03064548,181.93,181.82,0.82460815]
[1734835691683,1.03064548,181.93,181.78,34.02063865]
[1734835691883,0.10992168,181.86,181.79,0.82475859]
[1734835692787,0.10992168,181.86,181.78,0.82482303]
[1734835692987,20.10992168,181.86,181.78,0.82482303]
[1734835693301,21.6587,181.84,181.76,0.82497467]
[1734835693618,1.03129504,181.83,181.74,0.82497865]
[1734835693818,1.03129504,181.83,181.72,0.82503592]
[1734835694995,1.03129504,181.83,181.71,0.82510875]
[1734835695727,2.40619504,181.83,181.71,0.82510875]
[1734835696020,20.0,181.8,181.68,0.4815167]
[1734835696223,21.03180384,181.79,181.68,0.4815167]
[1734835696696,1.6661,181.78,181.68,0.4815167]
[1734835696900,1.03192038,181.77,181.68,0.4815167]
[1734835697215,2.3902,181.76,181.68,0.4815167]
[1734835697522,21.03204262,181.75,181.68,0.4815167]
[1734835697824,1.3755,181.74,181.68,0.4815167]
[1734835698013,21.03207134,181.73,181.68,0.4815167]
[1734835698720,1.03207134,181.73,181.68,0.4815167]
[1734835699130,1.3757,181.72,181.68,0.4815167]
[1734835699289,1.3757,181.72,181.57,34.02063865]
[1734835699290,1.49504439,181.71,181.57,0.8256614]
[1734835699711,1.49504439,181.71,181.55,0.82586815]
[1734835700604,4.0381,181.67,181.5,0.6768022]
[1734835700827,20.0,181.64,181.5,0.6768022]
[1734835701000,21.03274431,181.63,181.5,0.6768022]
[1734835701201,1.3765,181.62,181.5,0.6768022]
[1734835701536,1.0328072,181.61,181.5,0.6768022]
[1734835701730,1.03257149,181.62,181.5,35.52349804]
[1734835702336,1.03257149,181.62,181.5,1.50285939]
[1734835702497,1.03255498,181.63,181.51,34.02063865]
[1734835702698,1.03242559,181.66,181.52,0.82594047]
[1734835702899,4.0381,181.67,181.56,34.02063865]
[1734835703097,1.6479,181.72,181.58,34.02063865]
[1734835703334,1.6479,181.72,181.61,34.02063865]
[1734835703511,1.6479,181.72,181.63,23.776884]
[1734835703898,2.3902,181.73,181.65,23.776884]
[1734835704625,1.03182055,181.72,181.63,23.776884]
[1734835705204,1.03182055,181.72,181.58,0.82545644]
[1734835705410,1.03182055,181.72,181.59,23.776884]
[1734835705707,1.03182055,181.72,181.61,23.776884]
[1734835705920,1.3758,181.71,181.58,0.82565098]
[1734835706120,1.03221189,181.7,181.58,0.82565098]
[1734835707344,1.03221189,181.7,181.56,34.02063865]
[1734835707345,1.3759,181.69,181.59,23.776884]
[1734835707502,1.03233552,181.68,181.59,23.776884]
[1734835707704,1.6479,181.67,181.5,1.50266083]
[1734835707924,21.03257845,181.66,181.5,1.50266083]
[1734835708109,21.03257845,181.66,181.53,34.02063865]
[1734835708415,1.03257845,181.66,181.54,0.82583849]
[1734835709141,1.03257845,181.66,181.55,23.776884]
[1734835710135,22.40877845,181.66,181.55,23.776884]
[1734835710344,20.0,181.66,181.57,23.776884]
[1734835710647,1.6479,181.67,181.59,23.776884]
[1734835711002,3.9579,181.73,181.61,23.776884]
[1734835711202,1.03205527,181.72,181.62,0.82564422]
[1734835711405,2.3902,181.73,181.63,23.776884]
[1734835711716,1.03196111,181.77,181.65,23.776884]
[1734835712034,0.10758198,181.66,181.65,23.776884]
[1734835712340,0.10758198,181.66,181.59,0.82543635]
[1734835712536,0.10758198,181.66,181.6,23.776884]
[1734835713044,0.10758198,181.66,181.6,24.60257746]
[1734835713640,0.10758198,181.66,181.61,34.02063865]
[1734835713809,0.10758198,181.66,181.62,24.60232518]
[1734835714005,0.10758198,181.66,181.65,23.776884]
[1734835714231,0.10758198,181.66,181.65,58.62286506]
[1734835714734,0.10758198,181.66,181.65,24.60222641]
[1734835715107,0.10758198,181.66,181.65,58.62286506]
[1734835715319,0.10758198,181.66,181.65,24.60222641]
[1734835715940,0.10758198,181.66,181.65,64.78855506]
[1734835716141,5.491e-05,181.68,181.66,73.29691265]
[1734835716342,9.63e-06,181.69,181.68,0.12549]
[1734835716544,2.779e-05,181.73,181.72,0.12549]
[1734835716723,2.779e-05,181.73,181.72,0.82478992]
[1734835717149,2.779e-05,181.73,181.72,34.84542857]
[1734835717348,2.779e-05,181.73,181.72,34.97091857]
[1734835717550,2.779e-05,181.73,181.72,34.84542857]
[1734835717844,2.779e-05,181.73,181.68,34.02063865]
[1734835718014,2.779e-05,181.73,181.69,0.82525123]
[1734835718415,1.03108527,181.85,181.69,0.82525123]
[1734835718616,21.03153073,181.84,181.69,0.82525123]
[1734835718923,21.03153073,181.84,181.66,35.63263865]
[1734835718924,21.03153073,181.84,181.67,0.82522373]
[1734835719328,20.0,181.83,181.68,34.02063865]
[1734835719538,1.03139199,181.82,181.69,24.60199759]
[1734835720519,22.40634315,181.83,181.69,58.62263624]
[1734835720722,1.03133794,181.86,181.71,57.79752265]
[1734835721040,1.03133794,181.86,181.73,23.776884]
[1734835721236,1.3747,181.85,181.72,0.82506155]
[1734835721538,1.03146623,181.84,181.69,0.82517298]
[1734835722328,1.3749,181.83,181.69,34.84581163]
[1734835722644,2.40623734,181.83,181.69,34.84581163]
[1734835722849,2.40623734,181.83,181.7,23.776884]
[1734835723046,2.4971,181.82,181.69,23.776884]
[1734835723225,20.0,181.8,181.69,23.776884]
[1734835723428,1.03165776,181.79,181.69,23.776884]
[1734835724344,1.03158755,181.81,181.69,23.776884]
[1734835724527,1.03158755,181.81,181.71,23.776884]
[1734835725630,2.4971,181.82,181.73,23.776884]
[1734835725958,3.52846401,181.82,181.73,23.776884]
[1734835726318,20.0,181.8,181.68,23.776884]
[1734835726524,1.5933,181.78,181.63,34.84592364]
[1734835726731,1.03181166,181.77,181.63,0.82528499]
[1734835727037,1.03181166,181.77,181.61,0.82556963]
[1734835727241,1.03181166,181.77,181.62,34.02063865]
[1734835727537,1.03181166,181.77,181.63,0.82546796]
[1734835727747,1.03181166,181.77,181.64,34.02063865]
[1734835727966,1.03181166,181.77,181.65,0.82534295]
[1734835728126,1.03181166,181.77,181.66,23.776884]
[1734835728332,1.03181166,181.77,181.65,0.82534295]
[1734835728633,20.0,181.75,181.63,0.8254857]
[1734835728837,1.03188008,181.74,181.63,0.8254857]
[1734835729051,1.03188008,181.74,181.61,0.82558995]
[1734835729850,1.03180836,181.75,181.62,34.02063865]
[1734835730166,1.3754,181.76,181.64,23.776884]
[1734835730167,1.03177199,181.76,181.64,23.776884]
[1734835730344,1.03177199,181.76,181.66,23.776884]
[1734835730867,1.03173361,181.77,181.67,0.82538688]
[1734835731069,1.03173361,181.77,181.68,23.776884]
[1734835731836,0.10551389,181.69,181.68,0.82531154]
[1734835732041,0.10551389,181.69,181.68,24.60219554]
[1734835733473,0.10551389,181.69,181.64,0.82540449]
[1734835734734,0.10551389,181.69,181.66,23.776884]
[1734835737368,0.10551389,181.69,181.63,23.776884]
[1734835737571,0.10551389,181.69,181.64,23.776884]
[1734835738272,0.10551389,181.69,181.66,23.776884]
[1734835739285,0.10551389,181.69,181.62,0.82550395]
[1734835739643,0.10551389,181.69,181.63,23.776884]
[1734835739843,0.10551389,181.69,181.65,23.776884]
[1734835740572,0.10551389,181.69,181.67,23.776884]
[1734835741244,0.10551389,181.69,181.68,24.60233353]
[1734835743386,0.10551389,181.69,181.61,34.02063865]
[1734835743570,0.10551389,181.69,181.62,0.8255565]
[1734835743878,0.10551389,181.69,181.62,34.84619515]
[1734835744571,0.10551389,181.69,181.63,34.02063865]
[1734835744773,0.10551389,181.69,181.65,23.776884]
[1734835744965,0.10551389,181.69,181.64,0.82549329]
[1734835746050,0.10551389,181.69,181.65,0.82558658]
[1734835746255,0.10551389,181.69,181.66,23.776884]
[1734835746457,0.10551389,181.69,181.68,23.776884]
[1734835747168,0.10551389,181.69,181.68,57.79752265]
[1734835747675,0.10247897,181.71,181.68,57.79752265]
[1734835747676,7.897e-05,181.71,181.7,50.020874]
[1734835747864,6.088e-05,181.72,181.71,0.12549]
[1734835748061,6.088e-05,181.72,181.71,34.14612865]
[1734835748377,4.893e-05,181.74,181.73,20.12549]
[1734835748548,6.739e-05,181.75,181.74,20.12549]
[1734835748753,5.7e-06,181.77,181.76,0.12549]
[1734835748965,2.4971,181.95,181.77,6.66049]
[1734835749191,9.331e-05,181.78,181.77,74.7017673]
[1734835749490,1.5807,181.96,181.81,20.0]
[1734835749656,1.03052789,181.94,181.83,23.776884]
[1734835749982,1.03075444,181.95,181.85,23.776884]
[1734835750192,1.5807,181.96,181.87,23.776884]
[1734835750353,2.4972,182.0,181.89,23.776884]
[1734835750556,1.03039767,181.99,181.91,23.776884]
[1734835751487,2.4972,182.0,181.92,0.82431521]
[1734835751778,1.03031068,182.04,181.93,23.776884]
[1734835751952,0.1111121,181.94,181.93,57.79752265]
[1734835753494,0.1111121,181.94,181.93,23.776884]
[1734835754003,0.1111121,181.94,181.93,58.6215986]
[1734835754202,0.1111121,181.94,181.93,58.7470886]
[1734835754402,0.1111121,181.94,181.93,58.6215986]
[1734835756283,0.1111121,181.94,181.93,24.60095995]
[1734835756592,0.1111121,181.94,181.9,0.82424843]
[1734835757666,0.1111121,181.94,181.91,23.776884]
[1734835757868,0.1111121,181.94,181.92,0.82416985]
[1734835758383,0.1111121,181.94,181.93,23.776884]
[1734835759267,0.1111121,181.94,181.93,24.60109345]
[1734835760200,0.1111121,181.94,181.93,23.776884]
[1734835761712,0.1111121,181.94,181.93,23.276884]
[1734835762476,0.1111121,181.94,181.85,0.82427577]
[1734835763602,0.1111121,181.94,181.86,0.82451532]
[1734835764090,0.1111121,181.94,181.87,23.776884]
[1734835765187,0.1111121,181.94,181.89,23.776884]
[1734835765984,0.1111121,181.94,181.81,13.7498]
[1734835765985,0.1111121,181.94,181.91,23.776884]
[1734835766190,0.1111121,181.94,181.93,23.776884]
[1734835767094,0.1111121,181.94,181.93,57.79752265]
[1734835767913,0.1111121,181.94,181.93,23.776884]
[1734835771811,0.22184517,181.94,181.93,23.776884]
[1734835772116,0.11073307,181.94,181.93,57.79752265]
[1734835772291,0.11073307,181.94,181.93,58.62158911]
[1734835772492,0.11073307,181.94,181.93,24.60095046]
[1734835774723,0.11073307,181.94,181.93,58.74707911]
[1734835775088,3.307e-05,181.94,181.93,58.74707911]
[1734835777529,3.307e-05,181.94,181.93,58.62158911]
[1734835778016,0.10169058,181.95,181.93,58.62158911]
[1734835778017,0.10169058,181.95,181.94,0.12549]
[1734835778323,0.10169058,181.95,181.94,47.76133865]
[1734835779330,0.10169058,181.95,181.94,47.88682865]
[1734835779999,0.10169058,181.95,181.94,71.53822265]
[1734835780499,0.10169058,181.95,181.94,23.776884]
[1734835780698,0.10169058,181.95,181.94,24.6009157]
[1734835780927,0.10169058,181.95,181.94,58.62155435]
[1734835781240,0.10169058,181.95,181.94,24.6009157]
[1734835782941,0.10169058,181.95,181.94,58.62155435]
[1734835783846,0.12059374,181.96,181.94,58.74704435]
[1734835784146,0.12059374,181.96,181.95,47.76063865]
[1734835785336,0.10793291,181.97,181.95,47.88612865]
[1734835785542,0.10793291,181.97,181.96,34.96990235]
[1734835785912,0.10793291,181.97,181.96,0.8237737]
[1734835786412,0.10793291,181.97,181.95,0.82400541]
[1734835787846,0.10793291,181.97,181.96,23.776884]
[1734835788417,0.10793291,181.97,181.96,0.82398215]
[1734835788744,0.10793291,181.97,181.96,24.60086615]
[1734835791831,0.20822528,181.97,181.96,24.60086615]
[1734835792141,0.10029237,181.97,181.96,24.60086615]
[1734835796249,0.10029237,181.97,181.96,0.82398215]
[1734835796454,0.10029237,181.97,181.93,0.82407533]
[1734835796636,0.10029237,181.97,181.89,27.12933585]
[1734835796637,0.10029237,181.97,181.9,0.82423943]
[1734835797760,0.10029237,181.97,181.91,20.88753585]
[1734835798052,0.10029237,181.97,181.93,23.776884]
[1734835798636,0.10029237,181.97,181.94,0.82425883]
[1734835799446,0.10029237,181.97,181.95,23.776884]
[1734835799650,0.10029237,181.97,181.96,24.60095689]
[1734835800444,0.10029237,181.97,181.96,23.776884]
[1734835801754,0.10029237,181.97,181.93,0.82419735]
[1734835802053,0.10029237,181.97,181.94,23.776884]
[1734835803066,0.10029237,181.97,181.89,21.71180225]
[1734835803362,0.10029237,181.97,181.86,0.82437836]
[1734835803525,1.47419237,181.97,181.84,0.8245323]
[1734835803729,1.47419237,181.97,181.83,8.56637172]
[1734835803730,20.0,181.93,181.83,8.56637172]
[1734835804034,20.0,181.93,181.81,0.82459008]
[1734835804035,1.03093801,181.92,181.81,0.82459008]
[1734835805830,1.03093801,181.92,181.82,23.776884]
[1734835806328,1.3743,181.91,181.82,23.776884]
[1734835807361,1.6424,181.89,181.76,0.82471217]
[1734835807550,1.03113758,181.88,181.76,0.82471217]
[1734835808233,1.6424,181.89,181.79,34.0009822]
[1734835808428,1.6424,181.89,181.81,23.776884]
[1734835809149,1.03088774,181.88,181.81,23.776884]
[1734835809355,1.03088774,181.88,181.77,0.82471019]
[1734835810859,1.03088774,181.88,181.78,23.776884]
[1734835811163,1.03088774,181.88,181.79,0.82485708]
[1734835811357,3.0169,181.89,181.8,23.776884]
[1734835811358,1.6424,181.89,181.8,23.776884]
[1734835811657,1.6424,181.89,181.82,23.776884]
[1734835811964,0.11880036,181.83,181.82,23.776884]
[1734835813568,0.11880036,181.83,181.82,57.7778662]
[1734835813862,0.11880036,181.83,181.82,24.60145148]
[1734835814334,0.11880036,181.83,181.82,58.60243368]
[1734835814537,0.11880036,181.83,181.82,24.60145148]
[1734835814961,0.11880036,181.83,181.82,58.60243368]
[1734835815462,0.11880036,181.83,181.8,0.82459217]
[1734835815852,0.11880036,181.83,181.77,0.82485986]
[1734835816745,0.11880036,181.83,181.78,34.82587388]
[1734835817067,0.11880036,181.83,181.81,34.0009822]
[1734835817263,0.11880036,181.83,181.82,0.82466416]
[1734835817445,0.11880036,181.83,181.82,24.60154816]
[1734835822648,0.11880036,181.83,181.81,23.776884]
[1734835823053,0.11880036,181.83,181.82,24.60174235]
[1734835824168,0.11880036,181.83,181.82,58.60272455]
[1734835824568,0.11880036,181.83,181.82,24.60174235]
[1734835824867,0.11880036,181.83,181.82,58.60272455]
[1734835825071,0.11880036,181.83,181.82,24.60174235]
[1734835825273,0.11880036,181.83,181.77,34.0009822]
[1734835825453,0.11880036,181.83,181.78,0.82486904]
[1734835826477,0.11880036,181.83,181.79,0.82488385]
[1734835826666,0.11880036,181.83,181.76,0.82489515]
[1734835826867,0.11880036,181.83,181.77,23.776884]
[1734835827080,0.11880036,181.83,181.79,23.776884]
[1734835827471,0.11880036,181.83,181.73,15.3962]
[1734835827472,0.11880036,181.83,181.76,0.82488693]
[1734835827663,20.11880036,181.83,181.76,0.82488693]
[1734835828170,0.11880036,181.83,181.76,0.82488693]
[1734835828473,0.11880036,181.83,181.77,0.82495658]
[1734835828690,0.11880036,181.83,181.74,0.82498977]
[1734835829459,0.11880036,181.83,181.75,23.776884]
[1734835829781,0.11880036,181.83,181.77,23.776884]
[1734835829965,0.11880036,181.83,181.79,23.776884]
[1734835830162,0.11880036,181.83,181.81,23.776884]
[1734835830366,0.11880036,181.83,181.82,24.6015249]
[1734835832089,0.11972037,181.83,181.82,24.6015249]
[1734835832685,0.11972037,181.83,181.82,58.59539435]
[1734835832862,0.11972037,181.83,181.82,60.19219435]
[1734835834594,0.11972037,181.83,181.82,24.6015249]
[1734835835292,0.05070229,181.87,181.83,23.776884]
[1734835835515,0.05070229,181.87,181.84,0.82462442]
[1734835835683,0.05070229,181.87,181.85,23.776884]
[1734835835882,0.05070229,181.87,181.86,0.82463507]
[1734835836314,0.05070229,181.87,181.86,24.60151907]
[1734835837215,0.05070229,181.87,181.85,23.776884]
[1734835838092,0.05070229,181.87,181.86,24.60152741]
[1734835841114,0.05070229,181.87,181.8,0.82456]
[1734835841414,2.4972,181.86,181.74,6.5016]
[1734835841580,1.03125946,181.85,181.75,0.82500756]
[1734835842296,21.03125946,181.85,181.75,0.82500756]
[1734835842491,21.03131026,181.85,181.76,0.82504821]
[1734835843111,21.03131026,181.85,181.73,0.82497578]
[1734835844194,21.03131026,181.85,181.74,23.776884]
[1734835844395,21.03131026,181.85,181.75,0.82504255]
[1734835844604,21.03131026,181.85,181.76,23.776884]
[1734835846009,2.40611026,181.85,181.76,23.776884]
[1734835846314,20.0,181.83,181.72,23.776884]
[1734835846518,1.03148909,181.82,181.72,23.776884]
[1734835846688,1.03148909,181.82,181.74,23.776884]
[1734835848192,1.375,181.81,181.66,0.82516405]
[1734835848395,21.0317235,181.8,181.66,0.82516405]
[1734835849290,1.3752,181.79,181.66,0.82516405]
[1734835849500,1.0316779,181.78,181.66,0.82516405]
[1734835849714,1.0316779,181.78,181.67,23.776884]
[1734835850023,1.0316779,181.78,181.66,0.82516405]
[1734835850392,22.4972,181.77,181.66,0.82516405]
[1734835850697,1.0316971,181.76,181.66,0.82516405]
[1734835851026,1.0316701,181.76,181.66,0.82516405]
[1734835851227,1.0316701,181.76,181.67,23.776884]
[1734835851818,0.09942903,181.68,181.67,23.776884]
[1734835853114,0.09942903,181.68,181.67,24.60231214]
[1734835854097,0.09942903,181.68,181.65,0.82538949]
[1734835855118,0.09942903,181.68,181.65,21.77923252]
[1734835855292,0.09942903,181.68,181.66,20.95384303]
[1734835855499,0.09942903,181.68,181.67,21.77912468]
[1734835855721,0.09942903,181.68,181.67,45.55600868]
[1734835856122,0.10043432,181.69,181.68,51.08662703]
[1734835856500,3.432e-05,181.69,181.68,66.60331703]
[1734835856698,3.432e-05,181.69,181.68,67.42826212]
[1734835858538,0.11623808,181.71,181.69,0.12549]
[1734835858830,0.11623808,181.71,181.7,35.53768602]
[1734835859013,0.11623808,181.71,181.7,35.66317602]
[1734835859814,1.5538,181.85,181.71,0.12549]
[1734835860035,4.1155,181.91,181.76,20.95384303]
[1734835860202,4.1155,181.91,181.8,20.95384303]
[1734835860403,4.1155,181.91,181.81,0.82462132]
[1734835860611,4.1155,181.91,181.82,23.776884]
[1734835860829,4.1155,181.91,181.84,23.776884]
[1734835861431,1.03080591,181.9,181.73,0.82464472]
[1734835861620,1.6183,181.89,181.69,0.82505753]
[1734835861816,1.6183,181.87,181.69,0.82505753]
[1734835862020,20.0,181.85,181.69,0.82505753]
[1734835862242,1.03149919,181.84,181.69,0.82505753]
[1734835862743,1.03149919,181.84,181.69,21.77890056]
[1734835862931,2.40629919,181.84,181.69,21.77890056]
[1734835863121,2.40629919,181.84,181.7,20.95384303]
[1734835863325,2.40629919,181.84,181.71,0.82508632]
[1734835863640,2.40629919,181.84,181.72,23.776884]
[1734835863840,2.40629919,181.84,181.74,23.776884]
[1734835866048,22.93672026,181.85,181.76,23.776884]
[1734835866049,20.0,181.85,181.76,23.776884]
[1734835866635,4.02409429,181.87,181.78,23.776884]
[1734835867033,4.02409429,181.87,181.8,23.776884]
[1734835867034,1.6183,181.87,181.8,23.776884]
[1734835867220,1.6183,181.87,181.82,23.776884]
[1734835867416,2.64927118,181.87,181.82,23.776884]
[1734835867730,2.64927118,181.87,181.8,23.776884]
[1734835867934,2.64927118,181.87,181.76,0.82486463]
[1734835868333,20.0,181.85,181.77,23.776884]
[1734835868836,20.0,181.85,181.79,23.776884]
[1734835870153,1.03114342,181.84,181.71,36.42733749]
[1734835870454,1.3749,181.83,181.71,0.82491473]
[1734835870618,1.0314682,181.82,181.71,0.82491473]
[1734835870822,1.3749,181.83,181.71,0.82491473]
[1734835871021,1.03132533,181.82,181.71,0.82491473]
[1734835871245,2.40626715,181.83,181.71,0.82491473]
[1734835871451,2.40626715,181.83,181.71,34.85763749]
[1734835871845,0.10605696,181.73,181.72,23.776884]
[1734835874673,0.10605696,181.73,181.71,0.82520467]
[1734835875374,0.10605696,181.73,181.69,0.82519772]
[1734835876159,0.10605696,181.73,181.72,34.03272276]
[1734835876464,0.10605696,181.73,181.72,24.60190209]
[1734835877352,0.10605696,181.73,181.72,23.776884]
[1734835877962,0.10605696,181.73,181.69,0.82523356]
[1734835878482,0.10605696,181.73,181.7,0.82529455]
[1734835879277,0.10605696,181.73,181.68,0.82530061]
[1734835879484,0.10605696,181.73,181.66,0.82541578]
[1734835879659,0.10605696,181.73,181.64,0.82552216]
[1734835880349,0.10605696,181.73,181.65,34.03272276]
[1734835880560,0.10605696,181.73,181.66,0.82536581]
[1734835880767,0.10605696,181.73,181.61,0.82541723]
[1734835880966,1.03196826,181.72,181.61,0.82541723]
[1734835881374,0.10605696,181.73,181.66,34.03272276]
[1734835881579,0.10605696,181.73,181.69,34.03272276]
[1734835881784,0.10605696,181.73,181.7,0.82516565]
[1734835881966,0.10605696,181.73,181.71,34.03272276]
[1734835882171,0.10605696,181.73,181.72,0.82504518]
[1734835882392,0.10605696,181.73,181.72,24.60192918]
[1734835889906,0.10605696,181.73,181.72,45.54789742]
[1734835890409,0.10605696,181.73,181.72,45.67338742]
[1734835890568,0.11247581,181.74,181.73,44.84834224]
[1734835890773,0.11247581,181.74,181.73,44.72285224]
[1734835891007,0.11247581,181.74,181.73,24.60185312]
[1734835891173,0.11247581,181.74,181.73,45.54782136]
[1734835891572,0.11247581,181.74,181.73,45.67331136]
[1734835891809,1.215e-05,181.75,181.74,29.01925824]
[1734835891972,0.11426032,181.75,181.74,29.01925824]
[1734835892304,8.684e-05,181.76,181.75,13.88059]
[1734835892608,9.982e-05,181.78,181.76,23.902374]
[1734835892776,6.332e-05,181.8,181.78,0.12549]
[1734835893100,2.200625,181.97,181.76,23.776884]
[1734835893101,4.22e-06,181.83,181.82,0.12549]
[1734835893288,4.22e-06,181.83,181.82,41.89577417]
[1734835893590,2.65839425,182.0,181.85,20.12549]
[1734835893791,2.65839425,182.0,181.88,20.94596824]
[1734835894001,1.6278,182.0,181.9,20.94596824]
[1734835894199,2.547567,182.04,181.91,34.77764511]
[1734835894891,2.547567,182.04,181.91,0.82413336]
[1734835895073,2.547567,182.04,181.92,23.776884]
[1734835895270,20.0,182.02,181.94,23.776884]
[1734835895684,20.0,182.02,181.96,23.776884]
[1734835897099,1.5172,182.04,181.96,23.776884]
[1734835897306,1.5172,182.08,181.98,23.776884]
[1734835897601,1.5172,182.08,182.0,23.776884]
[1734835897908,1.5172,182.08,182.02,23.776884]
[1734835898069,1.0298559,182.12,182.03,0.82380824]
[1734835898272,16.33792333,182.13,182.04,23.776884]
[1734835898468,16.33792333,182.13,182.03,0.82380824]
[1734835898469,16.33792333,182.13,182.06,23.776884]
[1734835898695,14.82072333,182.13,182.08,23.776884]
[1734835899006,0.6768022,182.14,182.08,23.776884]
[1734835899619,0.6768022,182.14,182.03,0.8232434]
[1734835899816,1.02966292,182.13,182.04,23.776884]
[1734835899985,2.40226292,182.13,182.0,0.82373033]
[1734835900189,4.0144,182.12,181.97,0.82382072]
[1734835900379,20.0,182.1,181.97,0.82382072]
[1734835900572,21.02991114,182.09,181.97,0.82382072]
[1734835900995,4.0144,182.12,181.99,33.95351175]
[1734835900996,20.0,182.1,181.99,33.95351175]
[1734835901186,20.0,182.1,182.0,0.82396841]
[1734835901598,20.0,182.1,182.0,34.77748016]
[1734835901780,20.0,182.1,182.0,0.82396841]
[1734835901975,20.0,182.09,182.01,23.776884]
[1734835902195,20.0,182.1,182.01,24.60071317]
[1734835902506,20.0,182.09,182.01,24.60071317]
[1734835903311,1.02972713,182.08,181.99,0.8237817]
[1734835903906,20.0,182.09,181.99,0.8237817]
[1734835904103,1.02983484,182.08,181.99,0.8237817]
[1734835904678,20.0,182.09,182.0,23.776884]
[1734835904877,20.0,182.09,182.02,23.776884]
[1734835905381,4.0144,182.12,182.02,23.776884]
[1734835905580,20.0,182.09,182.03,0.82375853]
[1734835905879,20.0,182.09,182.04,23.776884]
[1734835906085,1.5172,182.12,182.04,23.776884]
[1734835906301,2.54691692,182.12,182.04,23.776884]
[1734835908102,1.5172,182.12,182.04,23.776884]
[1734835908405,20.0,182.13,182.06,23.776884]
[1734835909707,0.6768022,182.14,182.07,0.82354652]
[1734835909908,0.6768022,182.14,182.08,23.776884]
[1734835910905,0.6768022,182.14,182.1,23.776884]
[1734835911087,0.6768022,182.14,182.12,57.73039575]
[1734835911286,0.6768022,182.14,182.13,58.55270771]